bitfinex-derivatives/quotes_ETHF0:USTF0_20241007
["timestamp","ask_amount","ask_price","bid_price","bid_amount"]
[1728270130344,3.2078,2509.5,2509.3,0.449]
[1728270130549,0.72183,2509.7,2509.4,0.27896]
[1728270130749,0.72183,2509.7,2509.4,1.09856]
[1728270130941,0.72183,2509.7,2509.5,0.27894]
[1728270130942,0.4429,2509.7,2509.5,0.27894]
[1728270131253,2.1523,2509.9,2509.6,1.29]
[1728270131254,0.27891,2509.9,2509.6,1.29]
[1728270131449,3.90501,2510.2,2509.7,0.4425]
[1728270131450,2.5632,2510.1,2509.7,0.4425]
[1728270131646,0.69712,2510.5,2509.7,0.4425]
[1728270131647,3.2078,2509.9,2509.7,0.4425]
[1728270131953,0.27887,2510.3,2509.9,1.5689]
[1728270132253,0.27887,2510.3,2510.0,1.29]
[1728270132654,0.27887,2510.3,2509.9,0.2789]
[1728270134148,0.4109,2510.4,2509.8,2.1775]
[1728270134355,0.4109,2510.4,2510.0,1.56889]
[1728270134855,0.4109,2510.4,2510.1,0.4433]
[1728270135857,4.4978,2510.2,2509.4,7.3978]
[1728270136158,3.984,2510.3,2509.4,3.2078]
[1728270136159,0.27895,2509.5,2509.4,3.2078]
[1728270136345,4.26375,2509.5,2509.4,3.2078]
[1728270136551,5.54425,2509.5,2509.4,3.2078]
[1728270136745,1.2805,2509.5,2509.4,3.2078]
[1728270137053,1.55945,2509.5,2509.1,1.29]
[1728270138155,1.2805,2509.5,2509.1,1.56899]
[1728270138358,1.55945,2509.5,2509.0,0.279]
[1728270138562,1.2805,2509.5,2509.0,2.8]
[1728270138865,0.27896,2509.4,2508.9,1.56461]
[1728270139251,1.2805,2509.5,2508.9,1.2856]
[1728270139450,0.27899,2509.2,2508.9,1.2856]
[1728270139758,1.2805,2509.5,2508.9,1.2856]
[1728270139964,3.2078,2509.3,2508.9,0.8481]
[1728270140258,6.0078,2509.0,2508.3,4.19]
[1728270140452,3.2078,2508.7,2508.2,0.4381]
[1728270140659,0.27905,2508.6,2508.2,0.71719]
[1728270141058,3.6455,2508.7,2508.2,0.4381]
[1728270141256,0.27907,2508.5,2508.2,0.4381]
[1728270141461,3.6455,2508.7,2508.2,0.4381]
[1728270141661,0.27907,2508.5,2508.2,0.4381]
[1728270141964,0.27908,2508.4,2508.2,0.4381]
[1728270142164,0.27908,2508.3,2508.2,0.4381]
[1728270143071,0.27908,2508.4,2508.2,0.4381]
[1728270145070,0.27906,2508.5,2508.0,3.6175]
[1728270145271,0.4327,2508.4,2508.0,4.0533]
[1728270145462,0.71178,2508.4,2508.0,4.33242]
[1728270145769,0.4327,2508.4,2508.0,4.33242]
[1728270146862,0.4327,2508.4,2508.0,4.0533]
[1728270147060,0.27907,2508.4,2508.0,4.33241]
[1728270147664,0.27907,2508.4,2508.0,1.12461]
[1728270148058,3.6263,2508.6,2508.0,4.0533]
[1728270148265,0.27909,2508.2,2508.0,4.0533]
[1728270148467,0.27909,2508.2,2508.0,0.8455]
[1728270148672,3.9872,2508.1,2507.6,4.19]
[1728270148971,3.9872,2508.1,2507.5,0.8368]
[1728270148972,0.27915,2507.8,2507.5,0.8368]
[1728270149770,0.27913,2507.9,2507.5,3.91597]
[1728270151774,3.48692,2508.0,2507.6,0.27916]
[1728270151971,3.2078,2508.0,2507.5,3.6368]
[1728270152169,0.27913,2507.9,2507.5,3.91597]
[1728270153573,3.48692,2508.0,2507.6,0.27916]
[1728270154672,3.48692,2508.0,2507.7,0.27915]
[1728270154673,3.2078,2508.0,2507.7,0.27915]
[1728270154981,3.48692,2508.0,2507.7,0.27915]
[1728270155679,3.2078,2508.3,2507.9,2.8]
[1728270155989,3.2078,2508.6,2508.2,0.27909]
[1728270156179,3.48685,2508.6,2508.2,0.27909]
[1728270156473,3.2078,2508.6,2508.5,3.07906]
[1728270157265,3.2078,2508.6,2508.3,0.4251]
[1728270157266,3.2078,2508.6,2508.3,3.2251]
[1728270157480,3.2078,2508.6,2508.4,0.27906]
[1728270157676,3.2078,2508.6,2508.5,0.4343]
[1728270157877,3.2078,2508.6,2508.5,0.71336]
[1728270158871,3.2078,2508.6,2508.5,0.4343]
[1728270159991,3.48685,2508.6,2508.5,0.4343]
[1728270160180,3.2078,2508.6,2508.5,0.4343]
[1728270165390,3.2078,2508.6,2508.5,0.71336]
[1728270166394,3.2078,2508.6,2508.5,0.4343]
[1728270166894,3.2078,2508.6,2508.5,0.71336]
[1728270167698,3.2078,2508.6,2508.5,0.4343]
[1728270169098,3.2078,2508.6,2508.1,0.2791]
[1728270169099,0.27907,2508.4,2508.1,0.2791]
[1728270169392,0.27907,2508.4,2508.0,3.6304]
[1728270169393,2.8,2508.4,2508.0,0.8565]
[1728270169701,0.2791,2508.1,2508.0,0.8565]
[1728270170004,0.2791,2508.2,2508.0,0.8565]
[1728270170488,3.89429,2508.3,2508.0,1.13561]
[1728270171395,0.4074,2508.3,2508.0,1.13561]
[1728270172299,0.4074,2508.3,2508.0,0.8565]
[1728270172602,0.27909,2508.2,2508.0,0.8565]
[1728270173093,0.27909,2508.2,2507.7,6.99]
[1728270173094,0.2791,2508.2,2507.8,0.27914]
[1728270173295,3.6152,2508.3,2507.7,5.33644]
[1728270173296,0.27911,2508.1,2507.7,5.33644]
[1728270173491,0.4215,2508.1,2507.8,0.27913]
[1728270173697,3.89429,2508.3,2507.9,0.27912]
[1728270176590,0.68649,2508.3,2507.9,0.27912]
[1728270177795,0.68649,2508.3,2507.7,0.8673]
[1728270177796,0.4074,2508.3,2507.7,0.8673]
[1728270178102,0.2791,2508.2,2507.8,0.27913]
[1728270178297,0.4394,2508.1,2507.8,0.27913]
[1728270178693,0.27912,2508.0,2507.7,0.8673]
[1728270178895,0.27912,2508.0,2507.1,4.19]
[1728270178896,2.8,2507.8,2507.1,4.19]
[1728270179089,2.8,2507.8,2507.2,0.2792]
[1728270179090,0.27918,2507.5,2507.2,0.2792]
[1728270179703,0.4394,2507.6,2507.3,0.27919]
[1728270179901,0.71856,2507.6,2507.3,0.27919]
[1728270180297,0.27917,2507.5,2507.2,0.2792]
[1728270180896,0.71857,2507.6,2507.3,0.27919]
[1728270181398,0.4394,2507.6,2507.4,0.27918]
[1728270181605,0.4394,2507.6,2507.1,1.2847]
[1728270181606,3.2078,2507.7,2507.2,2.8]
[1728270181790,3.2078,2507.7,2507.5,0.27916]
[1728270183801,3.2078,2507.7,2507.6,0.4173]
[1728270184001,3.2078,2507.7,2507.6,0.69646]
[1728270184601,1.13083,2507.9,2507.6,0.69646]
[1728270185504,0.27914,2507.8,2507.6,0.4173]
[1728270185802,0.27914,2507.8,2507.6,0.8274]
[1728270186107,1.13083,2507.9,2507.6,1.10656]
[1728270186609,1.13083,2507.9,2507.6,0.8274]
[1728270186906,0.8517,2507.9,2507.6,0.8274]
[1728270187107,0.27914,2507.8,2507.6,0.8274]
[1728270187897,0.8517,2507.9,2507.6,0.8274]
[1728270187898,1.13084,2507.9,2507.6,0.8274]
[1728270188403,1.13084,2507.9,2507.6,1.10656]
[1728270188803,1.13084,2507.9,2507.6,0.8274]
[1728270189199,0.8517,2507.9,2507.6,0.8274]
[1728270189404,0.27917,2507.6,2507.3,0.8589]
[1728270189909,0.72087,2507.6,2507.3,0.8589]
[1728270190406,0.4417,2507.6,2507.3,0.8589]
[1728270190605,0.4093,2507.5,2507.3,0.8589]
[1728270192006,0.68848,2507.5,2507.3,0.8589]
[1728270193403,0.68848,2507.5,2507.3,1.13809]
[1728270194110,0.4093,2507.5,2507.3,1.13809]
[1728270194306,0.4093,2507.5,2507.4,0.27918]
[1728270194503,0.4417,2507.6,2507.3,0.8589]
[1728270194707,0.4417,2507.6,2507.3,1.13809]
[1728270195707,0.72086,2507.6,2507.3,1.13809]
[1728270197908,3.07915,2507.7,2507.4,0.27918]
[1728270198106,3.07915,2507.7,2507.3,0.8589]
[1728270198107,2.8,2507.7,2507.3,0.8589]
[1728270198301,3.07916,2507.7,2507.4,0.27918]
[1728270198909,0.8249,2507.8,2507.3,0.8589]
[1728270198910,1.10404,2507.8,2507.5,0.27917]
[1728270199104,0.8249,2507.8,2507.3,0.8589]
[1728270199298,1.10404,2507.8,2507.5,0.27917]
[1728270200303,0.8249,2507.8,2507.3,0.8589]
[1728270200813,0.27918,2507.5,2507.3,0.8589]
[1728270201012,2.8,2507.7,2507.3,0.8589]
[1728270201013,0.27917,2507.6,2507.3,0.8589]
[1728270201304,0.27917,2507.5,2507.3,0.8589]
[1728270201710,0.27917,2507.6,2507.3,1.13809]
[1728270202112,1.10404,2507.8,2507.5,0.27917]
[1728270202310,0.8249,2507.8,2507.6,0.27916]
[1728270203302,0.4079,2507.8,2507.6,0.27916]
[1728270203507,0.4079,2507.8,2507.7,0.4345]
[1728270205709,0.4079,2507.8,2507.3,0.4194]
[1728270205910,0.68704,2507.8,2507.4,0.70098]
[1728270206106,0.4079,2507.8,2507.4,0.4218]
[1728270206311,0.71956,2507.7,2507.4,0.4218]
[1728270206512,0.71956,2507.7,2507.4,0.70098]
[1728270207721,0.4404,2507.7,2507.4,0.4218]
[1728270208019,0.4079,2507.8,2507.4,0.4218]
[1728270208020,0.4079,2507.8,2507.5,0.4337]
[1728270208318,0.4079,2507.8,2507.6,0.27916]
[1728270209222,0.4079,2507.8,2507.5,0.4337]
[1728270209923,0.4079,2507.8,2507.6,0.27916]
[1728270213227,3.6157,2507.8,2507.6,0.27916]
[1728270213524,3.6157,2507.8,2507.5,0.71287]
[1728270213720,3.6157,2507.8,2507.6,0.27916]
[1728270215421,3.6157,2507.8,2507.5,0.4337]
[1728270215630,3.6157,2507.8,2507.5,0.71286]
[1728270216327,3.6157,2507.8,2507.6,0.27916]
[1728270217221,3.6157,2507.8,2507.7,0.4177]
[1728270217222,3.2078,2507.8,2507.7,0.4177]
[1728270217523,3.2078,2507.8,2507.7,0.69685]
[1728270219318,3.2078,2507.8,2507.7,0.4177]
[1728270219625,1.56913,2507.9,2507.7,0.4177]
[1728270219823,1.29,2507.9,2507.7,0.4177]
[1728270220018,1.29,2507.9,2507.8,0.4276]
[1728270220427,0.27912,2508.0,2507.8,0.4276]
[1728270220924,3.4869,2508.2,2507.9,0.27912]
[1728270221136,3.2078,2508.2,2507.9,0.4402]
[1728270221437,0.27911,2508.1,2507.9,0.4402]
[1728270221927,6.7872,2508.0,2507.1,4.19]
[1728270222120,2.8,2507.7,2507.4,0.72327]
[1728270222317,0.27916,2507.6,2507.4,0.4441]
[1728270222522,0.71916,2507.6,2507.4,0.4441]
[1728270223425,0.44,2507.6,2507.4,0.4441]
[1728270223828,0.8433,2507.6,2507.4,0.4441]
[1728270224042,0.8433,2507.6,2507.4,0.72328]
[1728270225139,0.8433,2507.6,2507.4,0.4441]
[1728270225441,0.27914,2507.8,2507.5,0.27917]
[1728270225638,6.71783,2507.9,2507.5,0.27917]
[1728270225830,0.27914,2507.8,2507.5,0.27917]
[1728270226437,0.27914,2507.8,2507.4,0.4441]
[1728270226658,0.27914,2507.8,2507.5,0.27917]
[1728270237142,6.4387,2507.9,2507.5,0.27917]
[1728270237544,6.71783,2507.9,2507.5,0.27917]
[1728270237738,0.27914,2507.8,2507.5,0.27917]
[1728270238034,0.27914,2507.8,2507.4,0.4441]
[1728270238035,2.8,2507.9,2507.7,0.27914]
[1728270238242,0.8303,2508.0,2507.8,1.57083]
[1728270238737,0.427,2508.0,2507.8,1.2917]
[1728270238938,3.2448,2508.3,2507.8,1.2917]
[1728270239141,3.2448,2508.3,2508.0,0.27911]
[1728270239541,3.52388,2508.3,2508.0,0.27911]
[1728270240040,3.52389,2508.3,2507.9,0.27912]
[1728270241142,3.2448,2508.3,2508.0,0.27911]
[1728270241538,3.2078,2508.8,2508.4,0.27907]
[1728270241746,5.96864466,2509.3,2508.9,0.27901]
[1728270241937,6.4175,2509.4,2508.7,0.27903]
[1728270241938,0.27899,2509.2,2508.7,0.27903]
[1728270242240,0.27899,2509.1,2508.7,0.27903]
[1728270242448,6.4175,2509.4,2508.6,2.8]
[1728270242449,0.27899,2509.2,2508.8,0.27902]
[1728270242636,0.431,2509.3,2508.6,2.8]
[1728270242840,3.07895,2509.6,2509.2,0.27898]
[1728270243045,0.27895,2509.5,2508.8,2.8]
[1728270243250,0.27895,2509.5,2509.0,0.279]
[1728270243441,0.27895,2509.5,2509.1,0.70459]
[1728270244143,2.8,2509.2,2508.7,4.19]
[1728270244445,2.8,2508.8,2508.7,4.19]
[1728270244645,3.6541,2509.1,2508.6,0.27905]
[1728270244646,2.8,2509.0,2508.6,0.27905]
[1728270245344,0.27902,2508.9,2508.5,1.56096]
[1728270245551,2.8,2508.8,2508.5,1.56096]
[1728270246049,6.0078,2508.8,2508.5,0.8421]
[1728270246347,6.0078,2508.8,2508.1,4.19]
[1728270246348,2.8,2508.6,2508.2,0.4397]
[1728270246643,3.643,2508.5,2508.2,0.71879]
[1728270247148,0.4352,2508.5,2508.2,0.71879]
[1728270247446,2.8,2508.6,2508.3,0.27907]
[1728270248541,3.07905,2508.6,2508.2,0.71879]
[1728270248746,3.49095,2508.6,2508.2,0.71879]
[1728270248946,0.27906,2508.5,2508.2,0.4397]
[1728270249247,0.27906,2508.5,2508.2,0.71879]
[1728270249248,3.2078,2508.5,2508.2,0.71879]
[1728270249651,3.49095,2508.6,2508.3,0.27907]
[1728270249652,3.2119,2508.6,2508.3,0.27907]
[1728270250337,0.8696,2508.7,2508.4,0.27906]
[1728270250541,0.8696,2508.7,2508.5,0.4167]
[1728270250738,6.0078,2508.8,2508.5,0.4167]
[1728270250941,6.0078,2508.8,2508.5,0.69576]
[1728270251553,3.07905,2508.6,2508.2,0.71879]
[1728270251850,0.8524,2508.5,2508.2,0.71879]
[1728270252041,4.0602,2508.5,2508.2,0.71879]
[1728270252241,4.0602,2508.5,2508.2,0.4397]
[1728270252242,0.8524,2508.5,2508.2,0.4397]
[1728270252444,4.0602,2508.5,2508.2,0.71879]
[1728270253247,0.8524,2508.5,2508.2,0.71879]
[1728270253439,4.0602,2508.5,2508.2,0.71879]
[1728270253639,0.4199,2508.5,2508.2,0.71879]
[1728270254647,0.4199,2508.5,2508.2,0.4397]
[1728270254949,0.4199,2508.5,2508.2,0.71879]
[1728270255359,0.69896,2508.5,2508.2,0.71879]
[1728270255955,0.4199,2508.5,2508.2,0.71879]
[1728270256151,0.4199,2508.5,2508.2,0.4397]
[1728270256449,2.8,2508.6,2508.3,0.27908]
[1728270256646,3.2194,2508.7,2508.4,0.27906]
[1728270256851,2.8,2508.7,2508.5,0.71286]
[1728270257050,2.8,2508.7,2508.6,0.4167]
[1728270258049,3.2078,2508.8,2508.6,0.69574]
[1728270258251,3.2078,2508.8,2508.6,0.4167]
[1728270258556,3.2078,2508.8,2508.7,0.27904]
[1728270259150,3.2078,2508.8,2508.6,0.69575]
[1728270259551,0.4194,2509.1,2508.6,0.4167]
[1728270259747,6.28678,2509.3,2508.6,0.4167]
[1728270259947,6.0078,2509.3,2508.6,3.2167]
[1728270260250,6.0078,2509.3,2509.0,0.27899]
[1728270260551,1.13297,2509.4,2509.1,1.2932]
[1728270260552,0.854,2509.4,2509.1,1.2932]
[1728270260749,3.2078,2509.3,2509.2,0.27898]
[1728270260949,3.2078,2509.3,2509.1,1.57219]
[1728270261958,3.2078,2509.3,2509.1,1.2932]
[1728270264454,3.2078,2509.3,2508.8,0.27902]
[1728270264455,3.07898,2509.2,2508.8,0.27902]
[1728270264659,0.4166,2509.1,2508.9,0.27902]
[1728270266262,0.4166,2509.1,2509.0,0.279]
[1728270270461,0.4168,2509.2,2508.7,0.8595]
[1728270270661,0.4168,2509.2,2509.1,0.27899]
[1728270276761,3.2078,2509.3,2509.2,0.27898]
[1728270276964,0.8139,2509.6,2509.0,2.8]
[1728270277262,0.8139,2509.6,2508.8,3.2078]
[1728270277263,0.4413,2509.8,2509.7,0.27893]
[1728270277969,6.0078,2510.2,2510.0,0.27889]
[1728270277970,3.2078,2510.2,2510.0,0.27889]
[1728270279360,3.2078,2510.2,2509.9,0.2789]
[1728270281574,3.2078,2510.2,2510.0,0.27888]
[1728270281772,3.2078,2510.2,2509.6,3.6736]
[1728270281974,3.2078,2510.2,2510.0,0.27889]
[1728270282167,3.2078,2510.2,2509.6,3.6736]
[1728270282168,3.2078,2510.2,2509.9,0.2789]
[1728270282368,3.2078,2510.2,2510.0,0.27889]
[1728270285475,3.2078,2510.2,2509.7,3.2078]
[1728270285883,3.2078,2510.2,2510.0,0.27889]
[1728270286272,3.2078,2510.2,2510.1,0.4237]
[1728270287384,3.2078,2510.6,2510.4,0.27885]
[1728270288581,3.2078,2510.6,2510.3,0.27886]
[1728270289478,3.2078,2510.6,2510.4,0.27884]
[1728270289888,0.8405,2510.7,2510.4,0.27884]
[1728270290180,0.8405,2510.7,2510.3,0.27886]
[1728270290389,0.8405,2510.7,2510.4,0.27884]
[1728270290887,3.2078,2510.9,2510.2,3.6462]
[1728270291088,3.2078,2510.9,2510.7,0.27881]
[1728270291274,3.2078,2510.9,2510.3,3.2078]
[1728270291480,3.2078,2510.9,2510.6,0.27882]
[1728270292481,0.27882,2510.7,2510.4,0.27885]
[1728270293684,0.27882,2510.7,2510.3,0.27886]
[1728270294081,0.27881,2510.8,2510.4,0.27884]
[1728270294291,0.27881,2510.8,2510.5,0.27883]
[1728270294590,3.2078,2510.9,2510.6,1.10842]
[1728270294781,3.2078,2510.9,2510.6,0.8296]
[1728270294978,3.2078,2510.9,2510.7,0.27881]
[1728270295780,3.2078,2511.0,2510.7,0.27881]
[1728270295978,3.48658,2511.0,2510.7,0.27881]
[1728270296289,3.2078,2511.0,2510.6,1.10842]
[1728270296592,0.2788,2510.9,2510.6,0.8296]
[1728270297288,3.48659,2511.0,2510.6,1.10842]
[1728270297490,0.27879,2510.9,2510.6,1.10842]
[1728270298200,0.27879,2510.9,2510.6,0.8296]
[1728270299580,0.27879,2510.9,2510.6,1.10843]
[1728270300784,0.27881,2510.8,2510.6,0.8296]
[1728270302590,0.27882,2510.7,2510.6,0.8296]
[1728270302885,0.27881,2510.8,2510.6,0.8296]
[1728270303789,0.2788,2510.9,2510.6,0.8296]
[1728270304890,0.27881,2510.8,2510.6,0.8296]
[1728270305684,3.4866,2510.9,2510.6,0.8296]
[1728270306086,0.27881,2510.8,2510.6,0.8296]
[1728270306289,3.2078,2510.9,2510.6,0.8296]
[1728270306588,1.29,2510.8,2510.6,0.8296]
[1728270307190,0.416,2510.7,2510.6,0.8296]
[1728270307385,0.416,2510.7,2510.6,1.10843]
[1728270307886,0.416,2510.7,2510.6,0.8296]
[1728270309288,0.416,2510.7,2510.5,0.27883]
[1728270309489,1.2942,2510.7,2510.5,0.27883]
[1728270311592,1.2942,2510.7,2510.6,0.27883]
[1728270314688,0.416,2510.7,2510.6,0.27883]
[1728270315483,0.416,2510.7,2510.5,0.27883]
[1728270317489,0.416,2510.7,2510.4,0.4127]
[1728270317490,4.4978,2510.6,2510.4,0.4127]
[1728270317801,4.4978,2510.6,2510.4,0.27885]
[1728270317986,4.4978,2510.6,2510.4,0.4123]
[1728270318293,4.77663,2510.6,2510.4,0.4123]
[1728270319084,1.56883,2510.6,2510.4,0.4123]
[1728270319490,0.416,2510.7,2510.5,0.27883]
[1728270319692,3.2078,2511.2,2510.6,0.4303]
[1728270319892,2.5553,2511.1,2510.7,1.7171]
[1728270320197,2.5553,2511.1,2510.7,1.99591]
[1728270320198,0.27878,2511.0,2510.7,1.99591]
[1728270320396,2.5553,2511.1,2510.8,0.4084]
[1728270320397,2.83408,2511.1,2510.8,0.4084]
[1728270320596,0.27878,2511.0,2510.8,0.4084]
[1728270322597,2.83408,2511.1,2510.8,0.4084]
[1728270322998,1.2653,2511.1,2510.8,0.4084]
[1728270323201,1.2653,2511.1,2510.8,1.9772]
[1728270323393,1.2653,2511.1,2510.9,0.27879]
[1728270323598,0.27874,2511.4,2511.0,1.56877]
[1728270323795,0.4162,2511.5,2511.4,0.27874]
[1728270323999,0.2787,2511.8,2511.4,1.29]
[1728270324206,0.2787,2511.8,2511.7,1.29]
[1728270324395,0.2787,2511.8,2511.5,2.571]
[1728270326501,0.2787,2511.8,2511.5,1.281]
[1728270327103,0.8466,2512.0,2510.9,0.27879]
[1728270327104,0.27874,2511.4,2510.9,0.27879]
[1728270327302,6.0078,2511.3,2510.8,4.19]
[1728270327500,2.8,2511.1,2510.6,1.2678]
[1728270327702,0.27881,2510.8,2510.6,1.2678]
[1728270328101,0.2788,2510.9,2510.6,1.2678]
[1728270328307,0.8532,2511.2,2510.6,1.2678]
[1728270328308,0.27879,2511.0,2510.6,1.2678]
[1728270329414,0.27879,2510.9,2510.6,1.2678]
[1728270329608,3.6532,2511.2,2510.6,1.54663]
[1728270329609,0.27879,2511.0,2510.6,1.54663]
[1728270330015,0.27879,2511.0,2510.6,4.34663]
[1728270331618,0.2788,2510.9,2510.6,1.2678]
[1728270335713,0.27882,2510.7,2510.4,3.2078]
[1728270335916,6.0078,2510.9,2510.4,3.2078]
[1728270335917,0.27883,2510.6,2510.4,3.2078]
[1728270336222,0.8763,2510.8,2510.4,3.2078]
[1728270336424,0.27882,2510.7,2510.4,3.2078]
[1728270337222,0.27882,2510.7,2510.3,1.12646]
[1728270337418,0.27882,2510.7,2510.3,0.8476]
[1728270337727,1.15511,2510.8,2510.4,0.27885]
[1728270339612,0.27882,2510.7,2510.3,1.12646]
[1728270340718,0.27882,2510.7,2510.4,0.27885]
[1728270341721,6.7832,2510.7,2510.3,0.8476]
[1728270341918,0.4071,2510.6,2510.3,0.8476]
[1728270342218,0.27885,2510.4,2510.3,0.8476]
[1728270342429,0.27885,2510.4,2509.7,4.561]
[1728270342430,0.27888,2510.2,2509.8,0.27891]
[1728270342722,0.4179,2510.3,2509.9,0.7089]
[1728270342928,0.4179,2510.3,2509.9,0.43]
[1728270342929,0.27888,2510.2,2509.9,0.43]
[1728270343521,0.27889,2510.1,2509.9,0.43]
[1728270344023,3.6257,2510.3,2509.8,0.4146]
[1728270344024,6.4257,2510.3,2509.8,0.4146]
[1728270344328,0.2789,2509.9,2509.8,0.4146]
[1728270344524,3.984,2509.9,2509.6,0.43]
[1728270344724,3.984,2509.9,2509.2,6.3788]
[1728270344725,0.27893,2509.7,2509.4,0.4194]
[1728270345323,0.4464,2509.6,2509.4,0.4194]
[1728270345525,0.27895,2509.5,2509.4,0.4194]
[1728270345825,0.72534,2509.6,2509.4,0.4194]
[1728270346323,0.27895,2509.5,2509.3,0.43]
[1728270347524,0.4464,2509.6,2509.3,0.43]
[1728270347722,2.8,2509.7,2509.4,0.27895]
[1728270347723,0.27893,2509.7,2509.4,0.27895]
[1728270347928,4.36342,2509.8,2509.4,0.27895]
[1728270348826,0.27893,2509.7,2509.3,3.50897]
[1728270349029,4.36342,2509.8,2509.4,0.27896]
[1728270349429,0.27893,2509.7,2509.3,3.23]
[1728270349828,4.0845,2509.8,2509.3,3.23]
[1728270350029,3.48672,2509.8,2509.4,0.27895]
[1728270350223,3.2078,2509.8,2509.5,0.27895]
[1728270350532,0.70711,2509.9,2509.6,0.4275]
[1728270350931,0.70711,2509.9,2509.7,0.4329]
[1728270351123,0.2789,2510.0,2509.7,0.4329]
[1728270352830,0.27891,2509.9,2509.7,0.4329]
[1728270355224,3.2078,2510.1,2509.7,0.4329]
[1728270355432,0.27891,2509.9,2509.7,0.4329]
[1728270356124,3.2078,2510.1,2509.7,0.4329]
[1728270356325,3.07892,2509.8,2509.7,0.4329]
[1728270356636,3.07892,2509.8,2509.6,0.4275]
[1728270356637,0.27893,2509.7,2509.6,0.4275]
[1728270356930,0.4171,2509.7,2509.5,0.4059]
[1728270357137,0.27894,2509.6,2509.5,0.4059]
[1728270357638,0.4171,2509.7,2509.2,3.2078]
[1728270357639,0.27895,2509.5,2509.2,3.2078]
[1728270357833,0.27895,2509.5,2509.3,0.4371]
[1728270358034,0.27895,2509.6,2509.3,0.4371]
[1728270358437,0.27895,2509.5,2509.3,0.4371]
[1728270359651,0.27894,2509.6,2509.3,0.4371]
[1728270359941,0.27895,2509.5,2509.3,0.4371]
[1728270360137,0.27895,2509.6,2509.3,0.4371]
[1728270360339,0.4171,2509.7,2509.3,0.4371]
[1728270360542,0.27894,2509.6,2509.3,0.4371]
[1728270361538,0.4171,2509.7,2509.3,0.4371]
[1728270361743,0.27894,2509.6,2509.3,0.4371]
[1728270364443,3.2078,2509.8,2509.3,0.4371]
[1728270364744,6.0078,2510.1,2509.6,0.27894]
[1728270364954,0.27891,2509.9,2509.7,0.8552]
[1728270365341,1.12648,2510.2,2509.8,0.27891]
[1728270365648,1.12648,2510.2,2509.7,0.8552]
[1728270365649,0.4336,2510.2,2509.7,1.2919]
[1728270365841,0.71248,2510.2,2509.8,0.27891]
[1728270366036,3.48667,2510.3,2509.9,0.2789]
[1728270366242,3.48667,2510.3,2510.0,0.27889]
[1728270366243,3.2078,2510.3,2510.0,0.27889]
[1728270366448,3.2078,2510.3,2510.1,0.4407]
[1728270366937,2.8,2510.6,2510.1,0.4407]
[1728270366938,3.2078,2510.6,2510.2,3.984]
[1728270367139,3.2078,2510.6,2510.3,0.8275]
[1728270367342,3.2078,2510.6,2510.4,0.27885]
[1728270367848,0.27881,2510.8,2510.3,1.10635]
[1728270367849,0.2788,2510.8,2510.3,1.10635]
[1728270369544,0.2788,2510.8,2510.4,0.27884]
[1728270373141,0.2788,2510.8,2510.3,1.10635]
[1728270374945,0.2788,2510.8,2510.3,0.8275]
[1728270375144,0.2788,2510.8,2510.4,0.27885]
[1728270377851,2.8,2510.8,2510.3,0.8275]
[1728270378049,0.27884,2510.6,2510.3,0.4093]
[1728270378754,0.71364,2510.6,2510.3,0.4093]
[1728270383348,0.71364,2510.6,2510.3,0.68816]
[1728270383748,0.27884,2510.5,2510.3,0.4093]
[1728270384152,0.4348,2510.6,2510.3,0.4093]
[1728270384347,0.4348,2510.6,2510.1,0.4407]
[1728270384348,0.27886,2510.3,2510.1,0.4407]
[1728270384654,0.27889,2510.1,2509.9,0.4224]
[1728270385160,0.68229,2510.1,2509.9,0.4224]
[1728270385457,0.68229,2510.1,2509.7,3.6313]
[1728270385458,0.2789,2510.0,2509.7,3.6313]
[1728270386055,0.68229,2510.1,2509.8,0.27891]
[1728270386752,0.68229,2510.1,2509.7,3.91022]
[1728270387256,0.4081,2510.2,2510.0,0.27889]
[1728270387451,0.4081,2510.2,2510.1,0.8434]
[1728270388359,4.3921,2510.2,2510.1,0.8434]
[1728270388560,4.3921,2510.2,2509.9,0.2789]
[1728270388561,7.47097,2510.2,2509.9,0.2789]
[1728270388851,3.48697,2510.2,2509.9,0.2789]
[1728270389458,3.2081,2510.2,2510.0,0.27889]
[1728270390165,0.4081,2510.2,2510.0,0.27889]
[1728270391161,0.4081,2510.2,2509.8,0.8418]
[1728270391466,0.4081,2510.2,2510.0,0.27889]
[1728270392766,0.68697,2510.2,2509.9,0.2789]
[1728270392962,0.4081,2510.2,2509.9,0.2789]
[1728270393164,0.68697,2510.2,2509.9,0.2789]
[1728270393362,0.8342,2510.2,2509.8,0.8418]
[1728270393557,0.8342,2510.2,2509.9,0.2789]
[1728270393558,3.91308,2510.2,2509.9,0.2789]
[1728270396566,3.91307,2510.2,2509.9,0.2789]
[1728270397474,3.6342,2510.2,2509.8,0.8418]
[1728270397671,0.2789,2509.9,2509.8,0.4178]
[1728270397871,2.8,2510.0,2509.5,4.0745]
[1728270398065,0.4092,2509.8,2509.5,4.0745]
[1728270398369,0.4092,2509.8,2509.3,0.69006]
[1728270398370,1.56894,2509.6,2509.3,0.69006]
[1728270399075,1.29,2509.4,2509.3,0.4111]
[1728270399568,1.29,2509.5,2509.3,1.00887]
[1728270399774,3.2078,2509.7,2509.3,2.0199]